bitfinex-derivatives/quotes_BTCF0:USTF0_20230901
["timestamp","ask_amount","ask_price","bid_price","bid_amount"]
[1693589273770,0.64303069,25490.0,25479.0,1.2]
[1693589273972,0.64303069,25493.0,25482.0,1.8]
[1693589274274,0.64303069,25493.0,25483.0,1.01547525]
[1693589274474,0.64303069,25496.0,25484.0,0.01962]
[1693589274778,0.98697856,25501.0,25484.0,0.01962]
[1693589274779,0.64303069,25501.0,25485.0,2.21160272]
[1693589274970,0.64303069,25497.0,25486.0,0.61961]
[1693589275165,0.64303069,25500.0,25486.0,0.63961]
[1693589275366,0.64303069,25500.0,25487.0,1.03745668]
[1693589275570,0.64303069,25500.0,25487.0,1.07706668]
[1693589275766,0.66303069,25500.0,25487.0,1.09706668]
[1693589275970,0.64303069,25494.0,25487.0,0.6475554]
[1693589276168,0.64303069,25497.0,25487.0,0.6475554]
[1693589276366,0.64303069,25497.0,25487.0,1.8475554]
[1693589276571,0.64303069,25497.0,25488.0,0.41949922]
[1693589276771,0.64303069,25497.0,25488.0,0.43949922]
[1693589276974,0.64303069,25497.0,25492.0,0.0316]
[1693589277368,0.64303069,25497.0,25493.0,0.59109267]
[1693589277577,0.64303069,25497.0,25494.0,0.22247491]
[1693589277774,0.64303069,25497.0,25493.0,0.61109267]
[1693589277971,0.64303069,25500.0,25495.0,0.59059623]
[1693589278175,0.66303069,25500.0,25494.0,0.58670707]
[1693589278375,0.64303069,25500.0,25492.0,0.0316]
[1693589278567,0.64303069,25497.0,25492.0,0.0516]
[1693589278971,0.64303069,25497.0,25493.0,0.58612916]
[1693589279174,0.98697856,25503.0,25494.0,0.22247491]
[1693589279175,0.14313069,25503.0,25494.0,0.22247491]
[1693589279372,0.14313069,25503.0,25494.0,0.02]
[1693589279578,0.14313069,25503.0,25495.0,0.58834232]
[1693589279768,0.3,25510.0,25495.0,1.03113467]
[1693589279972,0.3,25506.0,25495.0,2.23034606]
[1693589280180,0.32,25510.0,25495.0,2.28240235]
[1693589280370,0.00012,25514.0,25495.0,2.28240235]
[1693589280371,0.00012,25514.0,25502.0,0.0316]
[1693589280572,0.3,25513.0,25502.0,0.0516]
[1693589280777,0.00012,25514.0,25503.0,0.59098917]
[1693589280976,0.00012,25514.0,25503.0,1.065935]
[1693589281184,0.00012,25514.0,25503.0,0.61098917]
[1693589281482,0.00012,25514.0,25503.0,0.65098917]
[1693589282283,0.3,25510.0,25503.0,0.04]
[1693589282577,0.30012,25514.0,25504.0,1.02083266]
[1693589282779,0.30012,25514.0,25504.0,0.60752492]
[1693589282983,0.3,25521.0,25508.0,1.8]
[1693589283175,0.3,25524.0,25508.0,1.82]
[1693589283375,0.3,25524.0,25511.0,1.2]
[1693589283586,0.3,25535.0,25520.0,1.2]
[1693589283886,0.6,25543.0,25527.0,0.0316]
[1693589283887,0.98697856,25543.0,25527.0,0.0316]
[1693589284181,1.00697856,25543.0,25528.0,0.58448536]
[1693589284485,0.3,25543.0,25530.0,0.6]
[1693589284783,0.32,25543.0,25531.0,0.58814987]
[1693589284985,0.32,25543.0,25531.0,0.60814987]
[1693589285287,0.02,25543.0,25531.0,1.80814987]
[1693589285488,0.3,25548.0,25533.0,0.6]
[1693589285674,0.3,25548.0,25533.0,0.64109385]
[1693589285870,0.3,25548.0,25534.0,0.59002808]
[1693589286081,0.02,25548.0,25534.0,1.85002808]
[1693589286275,0.98697856,25558.0,25543.0,0.6]
[1693589286475,0.3,25556.0,25543.0,0.02]
[1693589286674,0.32,25556.0,25544.0,0.58716616]
[1693589286891,0.32,25556.0,25544.0,1.0495642]
[1693589287073,0.32,25556.0,25544.0,0.46239804]
[1693589287276,0.3,25562.0,25550.0,0.0316]
[1693589287477,0.00392,25559.0,25550.0,0.0316]
[1693589287686,0.98697856,25567.0,25551.0,0.58797153]
[1693589287872,0.02012,25566.0,25551.0,0.60797153]
[1693589288077,0.30012,25566.0,25551.0,0.60797153]
[1693589288278,0.00012,25566.0,25551.0,0.60797153]
[1693589288479,0.02012,25566.0,25555.0,0.6]
[1693589288682,0.02012,25566.0,25555.0,0.62]
[1693589288885,0.02012,25566.0,25556.0,0.59071959]
[1693589289189,0.00012,25566.0,25556.0,0.61071959]
[1693589289383,0.00392,25564.0,25556.0,0.61071959]
[1693589289684,0.3,25562.0,25550.0,0.0316]
[1693589289872,0.32,25562.0,25550.0,0.0516]
[1693589290383,0.32,25562.0,25551.0,0.58783174]
[1693589290581,0.32,25562.0,25548.0,0.0316]
[1693589290582,0.2684,25556.0,25548.0,0.0316]
[1693589290781,0.2684,25556.0,25548.0,0.0716]
[1693589290973,0.2684,25556.0,25548.0,0.0316]
[1693589290974,0.2884,25556.0,25548.0,0.0316]
[1693589291180,0.2684,25551.0,25545.0,0.0316]
[1693589291584,0.2684,25551.0,25545.0,0.62240786]
[1693589291780,0.2684,25554.0,25549.0,0.0316]
[1693589292087,0.2684,25550.0,25546.0,0.58568326]
[1693589292390,0.2884,25550.0,25547.0,0.11309677]
[1693589292684,0.2884,25550.0,25534.0,0.73389]
[1693589292685,0.2884,25550.0,25538.0,0.0316]
[1693589292884,0.2684,25540.0,25532.0,0.0316]
[1693589293090,0.2684,25536.0,25535.0,0.41096592]
[1693589293288,0.5884,25536.0,25535.0,0.36546592]
[1693589293478,0.5884,25536.0,25527.0,0.5888152]
[1693589293479,0.2684,25531.0,25523.0,0.0316]
[1693589293683,0.2684,25531.0,25523.0,0.0516]
[1693589293878,0.2684,25537.0,25530.0,0.0316]
[1693589294081,0.2684,25540.0,25534.0,0.0316]
[1693589294283,0.2684,25540.0,25534.0,0.0716]
[1693589294684,0.2684,25536.0,25530.0,0.0316]
[1693589294885,0.2684,25536.0,25526.0,0.0316]
[1693589294886,0.2884,25536.0,25526.0,0.0316]
[1693589295088,0.2684,25536.0,25528.0,0.58737519]
[1693589295307,0.2684,25536.0,25530.0,0.0316]
[1693589295691,0.2684,25536.0,25531.0,0.58510346]
[1693589295989,0.98410856,25535.0,25520.0,0.1652]
[1693589296188,0.2684,25522.0,25520.0,0.1652]
[1693589296393,0.2684,25522.0,25521.0,0.11309677]
[1693589296394,0.2884,25522.0,25521.0,0.11309677]
[1693589296588,0.2684,25522.0,25521.0,0.11309677]
[1693589296892,0.2684,25522.0,25510.0,0.1637]
[1693589296893,0.2684,25517.0,25510.0,0.1637]
[1693589297091,0.2684,25517.0,25509.0,0.0316]
[1693589297092,0.2884,25517.0,25509.0,0.0316]
[1693589297293,0.2884,25517.0,25500.0,1.22426279]
[1693589297294,0.2684,25511.0,25506.0,0.0316]
[1693589297482,0.2684,25511.0,25505.0,0.0316]
[1693589297685,1.78121909,25541.0,25505.0,0.0316]
[1693589297686,0.2684,25515.0,25508.0,0.0316]
[1693589297891,0.2684,25520.0,25512.0,0.0316]
[1693589298092,0.2684,25517.0,25512.0,0.0316]
[1693589298288,0.2684,25517.0,25509.0,0.45428392]
[1693589298487,0.2684,25517.0,25509.0,0.02]
[1693589298488,0.2884,25517.0,25509.0,0.02]
[1693589298684,0.2884,25517.0,25508.0,0.0316]
[1693589298884,0.2684,25517.0,25508.0,0.0916]
[1693589299285,0.2884,25517.0,25508.0,0.0716]
[1693589299697,0.2684,25514.0,25508.0,0.04]
[1693589300094,0.2684,25510.0,25501.0,0.0316]
[1693589300301,0.2684,25504.0,25501.0,0.02]
[1693589300501,0.2684,25504.0,25502.0,0.22247491]
[1693589300690,0.2684,25511.0,25502.0,0.63676917]
[1693589300890,0.2684,25514.0,25504.0,0.0316]
[1693589301092,0.2684,25514.0,25504.0,0.06]
[1693589301289,0.2684,25507.0,25504.0,0.04]
[1693589301496,0.2684,25507.0,25505.0,0.11309677]
[1693589301698,0.2684,25504.0,25497.0,0.1568]
[1693589302103,1.2,25512.0,25478.0,1.4138]
[1693589302104,0.98410856,25495.0,25478.0,1.4138]
[1693589302405,0.98410856,25495.0,25471.0,0.0316]
[1693589302406,0.98410856,25484.0,25471.0,0.0316]
[1693589302699,0.2684,25481.0,25478.0,0.00081658]
[1693589302903,0.2684,25481.0,25478.0,0.11019472]
[1693589303093,0.2684,25481.0,25471.0,0.0316]
[1693589303401,0.2684,25481.0,25471.0,0.06]
[1693589303600,0.2684,25481.0,25472.0,0.58617262]
[1693589303792,0.9,25488.0,25472.0,0.58617262]
[1693589303793,0.2684,25486.0,25477.0,0.0316]
[1693589303994,0.00391,25488.0,25482.0,0.0316]
[1693589304295,0.00391,25488.0,25482.0,0.0516]
[1693589304602,0.98410856,25493.0,25485.0,0.0316]
[1693589304603,0.2684,25493.0,25485.0,0.0316]
[1693589304797,0.2684,25493.0,25485.0,0.0516]
[1693589305394,0.00391,25488.0,25480.0,0.0316]
[1693589305590,0.00391719,25493.0,25487.0,0.00024]
[1693589305803,0.2684,25497.0,25488.0,0.00024]
[1693589306099,0.2684,25497.0,25495.0,0.00024]
[1693589306302,1.2,25509.0,25496.0,0.22247491]
[1693589306303,0.2684,25502.0,25496.0,0.22247491]
[1693589306503,0.2684,25502.0,25497.0,0.00024]
[1693589306801,0.2684,25502.0,25498.0,0.00024]
[1693589306993,0.2684,25502.0,25499.0,0.22247491]
[1693589307193,3.53410856,25509.0,25495.0,0.00024]
[1693589307194,0.98410856,25503.0,25495.0,0.00024]
[1693589307502,0.2684,25499.0,25492.0,0.00024]
[1693589307708,0.2684,25499.0,25496.0,0.00024]
[1693589307900,0.2684,25499.0,25497.0,0.22247491]
[1693589308103,0.2684,25499.0,25494.0,0.00024]
[1693589308304,0.2684,25495.0,25488.0,0.00024]
[1693589308601,0.2684,25495.0,25489.0,0.00024]
[1693589308801,0.2684,25495.0,25492.0,0.00024]
[1693589308994,0.2684,25495.0,25493.0,0.11309677]
[1693589309199,0.2684,25495.0,25482.0,1.2]
[1693589309200,0.00391719,25493.0,25484.0,0.00024]
[1693589309399,0.2684,25483.0,25480.0,0.00024]
[1693589309602,0.2684,25486.0,25485.0,0.00024]
[1693589309793,0.2684,25488.0,25486.0,0.00024]
[1693589309999,0.00391719,25489.0,25488.0,0.00024]
[1693589310210,0.00391719,25489.0,25483.0,0.00024]
[1693589310503,0.2684,25490.0,25486.0,0.00024]
[1693589310802,0.00391719,25527.0,25486.0,0.00024]
[1693589310803,0.2684,25493.0,25492.0,0.00024]
[1693589310991,0.2684,25493.0,25488.0,0.00024]
[1693589311196,0.3,25499.0,25488.0,0.02]
[1693589311197,0.2684,25490.0,25488.0,0.02]
[1693589311498,0.27231719,25490.0,25483.0,0.00024]
[1693589311691,0.2684,25490.0,25484.0,0.00024]
[1693589311900,0.2684,25490.0,25483.0,0.06]
[1693589311901,0.2684,25484.0,25483.0,0.04]
[1693589312098,0.2684,25484.0,25483.0,0.11309677]
[1693589312302,0.2684,25484.0,25475.0,0.0265]
[1693589312303,0.2684,25480.0,25479.0,0.00024]
[1693589312507,0.2684,25480.0,25479.0,0.11309677]
[1693589312807,1.28410856,25488.0,25479.0,0.11309677]
[1693589313004,0.2684,25486.0,25481.0,0.00024]
[1693589313302,0.2684,25486.0,25485.0,0.00024]
[1693589313505,0.5684,25486.0,25485.0,0.11309677]
[1693589313697,0.5684,25486.0,25475.0,0.0265]
[1693589313698,0.2684,25478.0,25475.0,0.0265]
[1693589313896,0.2684,25478.0,25476.0,0.22271491]
[1693589314092,0.2684,25478.0,25475.0,0.0265]
[1693589314505,0.2684,25478.0,25476.0,0.22247491]
[1693589314805,1.8,25483.0,25477.0,0.00024]
[1693589314806,0.2684,25483.0,25477.0,0.00024]
[1693589315112,0.2684,25483.0,25482.0,0.00024]
[1693589315297,0.2684,25483.0,25482.0,0.22271491]
[1693589315498,0.2684,25483.0,25482.0,0.24271491]
[1693589315708,0.2684,25486.0,25483.0,0.00024]
[1693589315910,0.2684,25486.0,25484.0,0.11309677]
[1693589316208,0.2684,25486.0,25484.0,0.00024]
[1693589316511,0.00391719,25488.0,25486.0,0.00024]
[1693589316809,0.2684,25489.0,25488.0,0.00024]
[1693589316996,0.00391719,25484.0,25483.0,0.00024]
[1693589317195,0.2684,25486.0,25480.0,0.00024]
[1693589317409,0.2684,25486.0,25485.0,0.00024]
[1693589317605,0.2684,25486.0,25485.0,0.11309677]
[1693589318110,1.2,25493.0,25486.0,0.00024]
[1693589318111,0.2684,25487.0,25486.0,0.00024]
[1693589318604,0.2684,25488.0,25487.0,0.00024]
[1693589319102,0.2684,25491.0,25490.0,0.00024]
[1693589319506,0.2684,25494.0,25493.0,0.00024]
[1693589319806,0.2684,25494.0,25493.0,0.26271491]
[1693589320004,0.27231719,25494.0,25493.0,0.22247491]
[1693589320208,0.3,25499.0,25483.0,0.4209]
[1693589320209,0.2684,25491.0,25486.0,0.00025]
[1693589320404,0.2684,25491.0,25490.0,0.00025]
[1693589320600,0.2684,25491.0,25490.0,0.22272491]
[1693589320802,0.2684,25491.0,25490.0,0.26272491]
[1693589322206,0.2684,25491.0,25490.0,0.28272491]
[1693589322406,0.6,25504.0,25491.0,0.00025]
[1693589322407,0.2684,25495.0,25491.0,0.00025]
[1693589322599,0.2684,25499.0,25498.0,0.00025]
[1693589322800,0.2684,25499.0,25495.0,0.00025]
[1693589323000,0.2684,25499.0,25496.0,0.11334677]
[1693589323208,0.2684,25499.0,25485.0,0.1602]
[1693589323209,0.00392719,25492.0,25486.0,0.00025]
[1693589323405,0.00392719,25491.0,25490.0,0.00025]
[1693589323606,0.2684,25493.0,25488.0,0.00025]
[1693589323902,0.2684,25493.0,25490.0,0.00025]
[1693589324103,0.2684,25493.0,25490.0,0.10962814]
[1693589324418,0.02195354,25495.0,25486.0,0.65076555]
[1693589324419,0.2684,25488.0,25486.0,0.00025]
[1693589324613,0.2884,25488.0,25485.0,0.1602]
[1693589325321,0.2684,25481.0,25480.0,0.00025]
[1693589325608,0.2684,25481.0,25476.0,0.00025]
[1693589325808,0.2684,25481.0,25474.0,0.00025]
[1693589326014,0.2684,25481.0,25475.0,0.00025]
[1693589326199,0.2684,25481.0,25478.0,0.00025]
[1693589326401,0.00392719,25480.0,25479.0,0.11309677]
[1693589326605,0.00392719,25478.0,25477.0,0.00025]
[1693589326807,0.00392719,25478.0,25477.0,0.22247491]
[1693589327114,0.27232719,25478.0,25477.0,0.22247491]
[1693589327315,0.2684,25472.0,25471.0,0.00025]
[1693589327507,0.27232719,25472.0,25471.0,0.11334677]
[1693589327702,0.2684,25472.0,25471.0,0.11309677]
[1693589327905,0.2684,25472.0,25471.0,0.22272491]
[1693589328504,0.2684,25472.0,25471.0,0.26272491]
[1693589328704,0.2684,25472.0,25471.0,0.22272491]
[1693589328909,0.2684,25476.0,25475.0,0.00025]
[1693589329109,0.3,25485.0,25477.0,0.00025]
[1693589329110,0.2684,25479.0,25477.0,0.00025]
[1693589329405,0.3,25485.0,25474.0,0.00025]
[1693589329406,0.2684,25476.0,25474.0,0.00025]
[1693589329603,0.00392719,25475.0,25474.0,0.04]
[1693589330009,0.00392719,25470.0,25469.0,0.1645]
[1693589330217,0.27232719,25467.0,25463.0,0.00025]
[1693589330409,0.27232719,25467.0,25464.0,0.00025]
[1693589330410,0.00392719,25466.0,25464.0,0.00025]
[1693589330709,0.00392719,25466.0,25465.0,0.11309677]
[1693589331244,0.00392719,25466.0,25461.0,0.00012]
[1693589331245,0.27232719,25462.0,25461.0,0.00012]
[1693589331402,0.27211944,25462.0,25461.0,0.00012]
[1693589331603,0.2684,25462.0,25461.0,0.00012]
[1693589332409,0.27231944,25462.0,25461.0,0.35879447]
[1693589332609,0.2684,25462.0,25461.0,0.50863261]
[1693589332820,0.2684,25465.0,25464.0,0.00046]
[1693589333014,0.00391944,25467.0,25466.0,0.00046]
[1693589333316,0.00391944,25467.0,25461.0,0.00012]
[1693589333317,0.27231944,25462.0,25461.0,0.00012]
[1693589333515,0.2684,25462.0,25461.0,0.00012]
[1693589333817,0.5684,25457.0,25456.0,0.24554864]
[1693589334005,0.2684,25454.0,25452.0,0.1615]
[1693589334204,0.2684,25458.0,25455.0,0.00046]
[1693589334412,0.2684,25458.0,25456.0,0.24564888]
[1693589334617,0.2684,25454.0,25453.0,0.00046]
[1693589334816,0.00391944,25456.0,25454.0,0.00046]
[1693589335014,0.2684,25457.0,25456.0,0.00046]
[1693589335210,0.2684,25457.0,25447.0,1.0497874]
[1693589335211,0.00391944,25451.0,25450.0,0.00046]
[1693589335416,0.2684,25454.0,25451.0,0.00046]
[1693589335610,0.2684,25454.0,25452.0,0.2456318]
[1693589335815,0.2684,25454.0,25450.0,0.00046]
[1693589335816,0.00391944,25451.0,25450.0,0.00046]
[1693589336016,0.00391944,25449.0,25448.0,0.00046]
[1693589336411,0.27231944,25451.0,25448.0,0.04]
[1693589336615,0.2684,25454.0,25448.0,0.06]
[1693589336812,0.2684,25454.0,25448.0,0.65242946]
[1693589337019,0.2684,25457.0,25450.0,0.0316]
[1693589337219,0.2684,25453.0,25450.0,0.02]
[1693589337418,0.2684,25453.0,25451.0,0.11309677]
[1693589337622,0.2684,25453.0,25445.0,0.0316]
[1693589337922,0.2684,25450.0,25445.0,1.05493561]
[1693589338318,0.2684,25453.0,25445.0,0.64020803]
[1693589338519,0.27231944,25453.0,25445.0,0.64020803]
[1693589338719,0.27231944,25453.0,25446.0,0.45029757]
[1693589338912,0.00391944,25450.0,25446.0,0.47029757]
[1693589339112,0.2684,25449.0,25447.0,0.11309677]
[1693589339312,0.2684,25449.0,25441.0,0.1554]
[1693589339313,0.00391944,25444.0,25441.0,0.1554]
[1693589339515,0.00391944,25443.0,25442.0,0.11309677]
[1693589339716,0.00391944,25443.0,25442.0,0.55415872]
[1693589339917,0.2684,25445.0,25442.0,0.55415872]
[1693589339918,0.27231944,25445.0,25442.0,0.17309677]
[1693589340127,0.27231944,25445.0,25443.0,0.22247491]
[1693589340334,0.2684,25445.0,25443.0,0.02]
[1693589340530,0.2684,25453.0,25444.0,0.80910584]
[1693589340716,0.2684,25453.0,25444.0,0.60663093]
[1693589340921,0.2684,25447.0,25444.0,0.06]
[1693589341419,0.00391944,25445.0,25444.0,0.02]
[1693589341727,0.3,25449.0,25438.0,0.1572]
[1693589341728,0.00391944,25441.0,25438.0,0.1572]
[1693589341927,0.27231944,25440.0,25439.0,0.11309677]
[1693589342114,0.27231944,25440.0,25438.0,0.1572]
[1693589342115,0.00391944,25439.0,25438.0,0.1572]
[1693589342315,0.00391944,25430.0,25421.0,0.6]
[1693589342622,0.2684,25427.0,25425.0,0.43438703]
[1693589342820,0.10401466,25431.0,25426.0,0.22247491]
[1693589343021,0.10401466,25431.0,25430.0,0.14534007]
[1693589343327,0.10401466,25431.0,25430.0,0.41375682]
[1693589343621,0.00391944,25434.0,25430.0,0.30442566]
[1693589343826,0.00391944,25434.0,25431.0,0.11309677]
[1693589344030,0.00391944,25434.0,25433.0,0.3589606]
[1693589344424,0.00391944,25434.0,25433.0,0.35977718]
[1693589344628,0.02391944,25434.0,25433.0,0.32317718]
[1693589344823,0.00391944,25426.0,25416.0,0.3245]
[1693589345034,0.00391944,25421.0,25416.0,0.1591]
[1693589345331,0.00391944,25421.0,25409.0,0.00012]
[1693589345332,0.00391944,25411.0,25409.0,0.00012]
[1693589345524,1.41771944,25410.0,25409.0,0.00012]
[1693589345717,0.00391944,25410.0,25409.0,0.00012]
[1693589345929,1.4138,25415.0,25409.0,0.40551478]
[1693589346323,0.00391944,25418.0,25410.0,0.3]
[1693589346519,0.00391944,25426.0,25417.0,0.3]
[1693589346726,0.30391944,25431.0,25417.0,0.32]
[1693589346926,1.5,25431.0,25418.0,0.7542302]
[1693589347126,0.3,25424.0,25418.0,0.16139478]
[1693589347327,0.00391944,25426.0,25418.0,0.16139478]
[1693589347523,0.98665856,25434.0,25419.0,0.88908983]
[1693589347730,0.00391944,25436.0,25422.0,0.3]
[1693589347932,0.00391944,25436.0,25422.0,0.32]
[1693589348136,0.00391944,25436.0,25423.0,0.44747482]
[1693589348137,1.2,25433.0,25423.0,0.44747482]
[1693589348327,0.02,25433.0,25423.0,0.44747482]
[1693589348528,0.3,25434.0,25423.0,0.06]
[1693589348724,0.00391944,25436.0,25424.0,0.59200487]
[1693589348931,0.00391944,25436.0,25424.0,0.43327496]
[1693589349135,0.3,25435.0,25424.0,0.60617137]
[1693589349322,0.00391944,25436.0,25424.0,0.60617137]
[1693589349522,0.00391944,25436.0,25424.0,0.94617137]
[1693589349944,0.03183679,25437.0,25431.0,0.3]
[1693589350230,0.3,25444.0,25432.0,0.58837169]
[1693589350231,0.00392944,25444.0,25432.0,0.58837169]
[1693589350437,0.6,25458.0,25432.0,0.58837169]
[1693589350438,0.00392944,25445.0,25434.0,0.3]
[1693589350741,0.98883856,25448.0,25434.0,0.3]
[1693589350742,0.00392944,25448.0,25439.0,0.3]
[1693589351039,0.00392944,25448.0,25442.0,0.3]
[1693589351235,0.00392944,25443.0,25440.0,0.58635148]
[1693589351428,0.00392944,25443.0,25441.0,0.11309677]
[1693589351624,0.02,25448.0,25441.0,0.11309677]
[1693589351625,0.00392944,25447.0,25441.0,0.02]
[1693589351839,0.02,25448.0,25443.0,0.00189]
[1693589351840,0.00392944,25444.0,25443.0,0.00189]
[1693589352028,0.00392944,25444.0,25443.0,0.22247491]
[1693589352331,0.00392944,25445.0,25444.0,0.00189]
[1693589352539,0.00392944,25447.0,25444.0,0.24247491]
[1693589352738,0.00392944,25447.0,25444.0,0.02]
[1693589353033,0.00392944,25447.0,25437.0,0.3]
[1693589353340,0.00392944,25441.0,25438.0,0.58807258]
[1693589353530,0.00392944,25441.0,25435.0,0.1565]
[1693589353531,0.00392944,25438.0,25435.0,0.1565]
[1693589353933,0.00392944,25440.0,25436.0,0.22247491]
[1693589354131,0.00392944,25441.0,25436.0,0.60989548]
[1693589354330,0.02392944,25448.0,25440.0,0.3]
[1693589354635,0.02,25448.0,25446.0,0.3]
[1693589354826,0.98883856,25458.0,25446.0,0.3]
[1693589354827,0.00392944,25458.0,25450.0,0.3]
[1693589355030,0.00392944,25457.0,25450.0,0.32]
[1693589355233,0.00392944,25456.0,25450.0,0.02]
[1693589355437,0.00392944,25456.0,25450.0,0.38]
[1693589355829,0.00392944,25458.0,25450.0,0.38]
[1693589356030,0.0243,25458.0,25453.0,0.3]
[1693589356244,1.292768,25470.0,25456.0,0.3]
[1693589356440,0.30392944,25470.0,25456.0,0.32]
[1693589356637,0.32392944,25470.0,25456.0,0.38]
[1693589356937,0.32392944,25470.0,25456.0,0.08]
[1693589356938,1.22392944,25470.0,25456.0,0.08]
[1693589357132,0.00392944,25453.0,25444.0,0.3]
[1693589357330,0.00392944,25453.0,25444.0,0.32]
[1693589357530,0.00392944,25455.0,25448.0,0.58701886]
[1693589357726,1.4138,25460.0,25448.0,0.08]
[1693589357926,0.3,25461.0,25448.0,0.38]
[1693589358242,0.3,25464.0,25449.0,0.58591656]
[1693589358435,0.3,25464.0,25449.0,0.60591656]
[1693589358939,0.3,25464.0,25449.0,0.08]
[1693589358940,0.00392944,25452.0,25449.0,0.08]
[1693589359138,0.00392944,25452.0,25450.0,0.11309677]
[1693589359441,1.7138,25460.0,25450.0,0.11309677]
[1693589359442,0.3,25460.0,25450.0,0.60763606]
[1693589359941,0.3,25460.0,25450.0,0.02]
[1693589360236,0.3,25460.0,25451.0,0.58895705]
[1693589360739,0.3,25460.0,25451.0,0.60895705]
[1693589361040,0.3,25460.0,25451.0,0.02]
[1693589361241,0.3,25460.0,25451.0,0.08]
[1693589361432,0.3,25448.0,25446.0,0.1647]
[1693589361628,0.08700455,25447.0,25432.0,0.3]
[1693589361944,0.3,25443.0,25433.0,0.58786786]
[1693589362240,0.32,25443.0,25433.0,0.58786786]
[1693589362536,0.3,25446.0,25434.0,0.59230868]
[1693589362848,1.28883856,25453.0,25437.0,0.3]
[1693589363042,1.28883856,25453.0,25437.0,0.32]
[1693589363233,0.3,25453.0,25438.0,0.58619363]
[1693589363432,0.3,25453.0,25438.0,1.07782728]
[1693589363832,0.3,25453.0,25438.0,0.66619363]
[1693589364639,0.3,25450.0,25438.0,0.66619363]
[1693589365436,0.98883856,25454.0,25442.0,0.3]
[1693589365636,0.6,25469.0,25442.0,0.3]
[1693589365637,0.3,25458.0,25445.0,0.3]
[1693589365830,0.3,25458.0,25445.0,0.32]
[1693589366141,0.3,25453.0,25438.0,0.3]
[1693589366336,0.3,25453.0,25438.0,0.32]
[1693589366532,0.3,25453.0,25442.0,0.59140086]
[1693589366734,0.3,25453.0,25442.0,0.06]
[1693589366933,0.3,25453.0,25442.0,0.08]
[1693589367230,1.2,25463.0,25442.0,0.08]
[1693589367231,0.3,25459.0,25444.0,0.3]
[1693589367432,0.3,25459.0,25444.0,0.32]
[1693589367729,0.3,25459.0,25445.0,1.03065745]
[1693589367939,0.3,25459.0,25445.0,0.96577821]
[1693589368135,0.3,25459.0,25445.0,0.66577821]
[1693589368437,0.3,25455.0,25445.0,0.06]
[1693589368643,1.4138,25453.0,25445.0,0.06]
[1693589369042,1.4138,25453.0,25433.0,0.7548]
[1693589369043,0.3,25448.0,25433.0,0.7548]
[1693589369342,1.4138,25447.0,25435.0,0.58951356]
[1693589369529,1.4138,25447.0,25435.0,0.02]
[1693589369940,0.3,25448.0,25436.0,0.89115647]
[1693589370143,0.3,25448.0,25436.0,0.97115647]
[1693589370846,0.3,25454.0,25439.0,0.3]
[1693589371035,0.3,25454.0,25439.0,0.32]
[1693589371238,0.98883856,25456.0,25440.0,1.18768876]
[1693589371541,0.98883856,25456.0,25440.0,1.26768876]
[1693589371746,1.7138,25457.0,25443.0,0.3]
[1693589371941,1.7138,25457.0,25443.0,0.32]
[1693589372141,1.7138,25457.0,25444.0,0.59199218]
[1693589372339,1.1323,25453.0,25444.0,0.59199218]
[1693589372546,1.1323,25458.0,25447.0,0.3]
[1693589372847,1.1323,25458.0,25448.0,0.58194693]
[1693589373043,0.3,25462.0,25448.0,0.58194693]
[1693589373044,1.1323,25455.0,25448.0,0.60194693]
[1693589373352,1.1323,25455.0,25448.0,0.02]
[1693589373545,1.1323,25455.0,25449.0,0.59139826]
[1693589373739,0.3,25462.0,25449.0,0.59139826]
[1693589373740,1.1323,25452.0,25449.0,0.59139826]
[1693589373939,0.08700455,25451.0,25449.0,0.02]
[1693589374140,1.1323,25452.0,25449.0,0.02]
[1693589374336,0.08700455,25451.0,25449.0,0.02]
[1693589374640,0.08700455,25451.0,25441.0,0.1546]
[1693589374641,1.1323,25450.0,25441.0,0.1546]
[1693589374839,0.3,25455.0,25441.0,0.02]
[1693589375048,1.1323,25453.0,25442.0,1.33269399]
[1693589375248,1.1323,25453.0,25442.0,1.35269399]
[1693589375654,1.1323,25447.0,25442.0,0.6100493]
[1693589375843,1.1323,25447.0,25442.0,0.6700493]
[1693589376543,1.1323,25451.0,25442.0,0.6700493]
[1693589376749,1.1323,25454.0,25442.0,0.6700493]
[1693589377255,1.1323,25449.0,25442.0,0.6700493]
[1693589377544,0.98883856,25451.0,25442.0,0.06]
[1693589377743,0.98883856,25451.0,25434.0,0.451]
[1693589377744,1.1323,25443.0,25434.0,0.451]
[1693589377935,1.1323,25443.0,25434.0,1.731]
[1693589378140,1.1323,25443.0,25435.0,0.59000864]
[1693589378449,1.1323,25443.0,25430.0,1.1323]
[1693589378450,1.1323,25436.0,25422.0,0.3]
[1693589378761,1.1323,25436.0,25418.0,0.3]
[1693589378762,0.00392944,25424.0,25418.0,0.3]
[1693589379043,0.3,25433.0,25418.0,0.3]
[1693589379044,1.1323,25426.0,25423.0,0.58903945]
[1693589379243,1.1323,25426.0,25424.0,0.22247491]
[1693589379451,1.1323,25428.0,25424.0,0.02]
[1693589379650,1.1323,25433.0,25425.0,0.80265358]
[1693589379844,0.00392944,25438.0,25428.0,0.3893]
[1693589380052,1.1323,25439.0,25428.0,0.3893]
[1693589380053,0.00392944,25439.0,25432.0,0.3893]
[1693589380242,0.00392944,25439.0,25432.0,0.4693]
[1693589380442,0.00392944,25439.0,25433.0,0.58600426]
[1693589380639,0.00392944,25439.0,25433.0,0.60600426]
[1693589381448,1.13622944,25438.0,25433.0,0.66600426]
[1693589381853,1.13622944,25436.0,25433.0,0.64600426]
[1693589382052,0.00392944,25430.0,25424.0,0.94105488]
[1693589382255,1.1323,25427.0,25424.0,0.02]
[1693589382454,1.1323,25427.0,25426.0,0.586066]